bitfinex-derivatives/quotes_BTCF0:USTF0_20241025
["timestamp","ask_amount","ask_price","bid_price","bid_amount"]
[1729862610468,0.073483,68075.0,68074.0,0.35469029]
[1729862610673,0.073483,68075.0,68074.0,0.35469299]
[1729862611771,0.073483,68075.0,68074.0,0.26668668]
[1729862611980,0.073483,68075.0,68074.0,0.35472024]
[1729862612667,0.073483,68075.0,68074.0,0.16610319]
[1729862617478,0.073483,68075.0,68074.0,0.07348]
[1729862617671,0.16610619,68075.0,68074.0,0.07348]
[1729862620778,0.16610619,68075.0,68074.0,0.17437034]
[1729862621175,0.16610619,68075.0,68074.0,0.26243769]
[1729862621479,0.16610619,68075.0,68074.0,0.17437034]
[1729862624279,0.16610619,68075.0,68074.0,0.17436777]
[1729862625487,0.16610619,68075.0,68074.0,0.26243512]
[1729862626888,0.16610619,68075.0,68074.0,0.17436777]
[1729862627777,0.16610619,68075.0,68074.0,0.07348]
[1729862629080,0.073483,68075.0,68074.0,0.07348]
[1729862629482,0.16610619,68075.0,68074.0,0.07348]
[1729862629682,0.073486,68071.0,68070.0,0.073486]
[1729862629992,0.16610919,68071.0,68070.0,0.073486]
[1729862630289,0.16610919,68071.0,68070.0,0.09646692]
[1729862630493,0.16610919,68071.0,68070.0,0.1405444]
[1729862631292,0.17785919,68071.0,68070.0,0.1405444]
[1729862631489,0.18960919,68071.0,68070.0,0.1405444]
[1729862631691,0.096986,68071.0,68070.0,0.1405444]
[1729862631882,0.096986,68071.0,68070.0,0.11756348]
[1729862633591,0.096986,68071.0,68070.0,0.073486]
[1729862633888,0.18960919,68071.0,68070.0,0.11757299]
[1729862634589,0.18960919,68071.0,68070.0,0.073486]
[1729862635885,0.18960919,68071.0,68070.0,0.2944055]
[1729862636786,0.18960919,68071.0,68070.0,0.39710802]
[1729862636990,0.18960919,68071.0,68062.0,0.13290256]
[1729862636991,0.72295238,68071.0,68064.0,0.10270252]
[1729862637179,0.54604638,68065.0,68062.0,0.10270252]
[1729862637377,0.073498,68059.0,68058.0,0.10270252]
[1729862637577,0.10072,68060.0,68058.0,0.24233075]
[1729862637776,0.174217,68060.0,68059.0,0.08817162]
[1729862637991,0.073498,68059.0,68058.0,0.08817162]
[1729862638188,0.073501,68056.0,68055.0,0.073502]
[1729862638386,0.073499,68060.0,68059.0,0.073497]
[1729862638585,0.073498,68059.0,68058.0,0.08812075]
[1729862638988,0.073498,68059.0,68058.0,0.16161975]
[1729862639184,0.073498,68059.0,68058.0,0.073499]
[1729862639890,0.073498,68059.0,68058.0,0.16161927]
[1729862640090,0.073498,68059.0,68058.0,0.08812027]
[1729862640286,0.073498,68059.0,68057.0,0.16162027]
[1729862640482,0.16612219,68058.0,68057.0,0.0735]
[1729862640686,0.16612219,68058.0,68057.0,0.1615823]
[1729862640888,0.16612219,68058.0,68057.0,0.16158309]
[1729862641289,0.16612219,68058.0,68057.0,0.0735]
[1729862641484,0.16612219,68058.0,68057.0,0.16155656]
[1729862642387,0.16612219,68058.0,68057.0,0.0735]
[1729862643887,0.073503,68055.0,68054.0,0.07481569]
[1729862644090,0.16612619,68055.0,68054.0,0.0308]
[1729862644287,0.09262319,68055.0,68052.0,0.0328]
[1729862644491,0.073508,68050.0,68048.0,0.04401569]
[1729862644797,0.073511,68047.0,68046.0,0.0325]
[1729862644988,0.16613419,68047.0,68046.0,0.0325]
[1729862657304,0.07351,68050.0,68046.0,0.48592319]
[1729862657501,0.12172245,68053.0,68049.0,0.15115128]
[1729862657704,0.073505,68053.0,68052.0,0.073506]
[1729862658505,0.073505,68053.0,68052.0,0.103506]
[1729862658811,0.09262319,68054.0,68053.0,0.073505]
[1729862659214,0.09262319,68054.0,68053.0,0.11740224]
[1729862659916,0.16612719,68054.0,68053.0,0.11740224]
[1729862660514,0.16612719,68054.0,68053.0,0.073505]
[1729862661104,0.073504,68054.0,68053.0,0.073505]
[1729862662411,0.073504,68054.0,68053.0,0.13203309]
[1729862662810,0.17787719,68054.0,68053.0,0.13203309]
[1729862663917,0.17787719,68054.0,68053.0,0.073505]
[1729862671418,0.073505,68053.0,68052.0,0.00076]
[1729862671629,0.073511,68047.0,68046.0,0.0325]
[1729862671921,0.16613419,68047.0,68046.0,0.0325]
[1729862672920,0.16613419,68047.0,68046.0,0.13292791]
[1729862673417,0.073511,68047.0,68046.0,0.13292791]
[1729862673724,0.073511,68047.0,68046.0,0.2990631]
[1729862674111,0.16613419,68047.0,68046.0,0.2990631]
[1729862674512,0.073511,68047.0,68046.0,0.2990631]
[1729862674719,0.073511,68047.0,68046.0,0.38711966]
[1729862675123,0.16613419,68047.0,68046.0,0.29449647]
[1729862676126,0.16613419,68047.0,68046.0,0.20643991]
[1729862676620,0.16613419,68047.0,68046.0,0.29453557]
[1729862677218,0.16613419,68047.0,68046.0,0.20643991]
[1729862677413,0.09262319,68047.0,68046.0,0.20643991]
[1729862677823,0.16613419,68047.0,68046.0,0.29454004]
[1729862678213,0.16613419,68047.0,68046.0,0.19411213]
[1729862678414,0.16613419,68047.0,68046.0,0.29406456]
[1729862678616,0.16613419,68047.0,68046.0,0.20596443]
[1729862678926,0.16613419,68047.0,68046.0,0.29407003]
[1729862679122,0.16613419,68047.0,68046.0,0.29407313]
[1729862679422,0.16613419,68047.0,68046.0,0.13245243]
[1729862679724,0.16613419,68047.0,68046.0,0.09995243]
[1729862680720,0.16613419,68047.0,68046.0,0.17346443]
[1729862680923,0.16613419,68047.0,68046.0,0.04406035]
[1729862681928,0.09262319,68047.0,68045.0,0.04406035]
[1729862682230,0.073512,68046.0,68045.0,0.04406035]
[1729862683825,0.09262319,68047.0,68043.0,0.073515]
[1729862684031,0.3608,68051.0,68045.0,0.04406766]
[1729862684224,0.073512,68046.0,68045.0,0.04406766]
[1729862684423,0.073512,68046.0,68043.0,0.073515]
[1729862684625,0.16613719,68044.0,68043.0,0.073515]
[1729862687930,0.16613719,68044.0,68043.0,0.2932076]
[1729862692424,0.16613719,68044.0,68043.0,0.10059747]
[1729862696129,0.16613719,68044.0,68043.0,0.17411347]
[1729862698733,0.16613719,68044.0,68043.0,0.10059747]
[1729862699037,0.16613719,68044.0,68043.0,0.22058673]
[1729862700134,0.52693719,68044.0,68043.0,0.22058673]
[1729862700330,0.61956038,68044.0,68043.0,0.10059747]
[1729862700938,0.073519,68040.0,68039.0,0.08816906]
[1729862701134,0.25876538,68040.0,68039.0,0.18904874]
[1729862701439,0.16614219,68040.0,68039.0,0.18904874]
[1729862701735,0.16614219,68040.0,68039.0,0.10087968]
[1729862701929,0.16614219,68040.0,68039.0,0.18904874]
[1729862702134,0.073519,68040.0,68039.0,0.10087968]
[1729862702330,0.073519,68040.0,68039.0,0.18904153]
[1729862702633,0.16614219,68040.0,68039.0,0.10087968]
[1729862703041,0.07352,68039.0,68038.0,0.073521]
[1729862703632,0.07352,68039.0,68037.0,0.05877418]
[1729862703837,0.073521,68038.0,68037.0,0.05877418]
[1729862704032,0.073523,68036.0,68035.0,0.073524]
[1729862704238,0.16614619,68036.0,68035.0,0.073524]
[1729862704943,0.073525,68034.0,68033.0,0.14699373]
[1729862705929,0.073525,68034.0,68033.0,0.073526]
[1729862706533,0.073525,68034.0,68033.0,0.14699373]
[1729862707137,0.073525,68034.0,68033.0,0.073526]
[1729862710441,0.073525,68034.0,68033.0,0.14699373]
[1729862710939,0.01899617,68036.0,68033.0,0.43396553]
[1729862711149,0.02158009,68040.0,68034.0,0.36043953]
[1729862711347,0.073522,68037.0,68036.0,0.10284213]
[1729862711533,0.073518,68041.0,68040.0,0.073518]
[1729862711736,0.073518,68041.0,68040.0,0.6552618]
[1729862711948,0.073518,68041.0,68040.0,0.89751153]
[1729862712144,0.073518,68041.0,68040.0,0.79467678]
[1729862716340,0.073518,68041.0,68040.0,0.81766685]
[1729862717248,0.073512,68048.0,68047.0,0.073509]
[1729862717449,0.073512,68048.0,68047.0,0.2944528]
[1729862717940,0.073512,68048.0,68047.0,0.135909]
[1729862720837,0.085262,68048.0,68047.0,0.135909]
[1729862722455,0.085262,68048.0,68047.0,0.0624]
[1729862725148,0.085262,68048.0,68043.0,0.04407555]
[1729862725355,0.085262,68048.0,68042.0,0.04407555]
[1729862725356,0.073516,68043.0,68042.0,0.04407555]
[1729862725548,0.09262319,68042.0,68041.0,0.07717555]
[1729862725751,0.07352,68039.0,68037.0,0.04407555]
[1729862726051,0.073522,68037.0,68036.0,0.033]
[1729862726250,0.073522,68037.0,68036.0,0.1336803]
[1729862727954,0.073522,68037.0,68036.0,0.10067235]
[1729862733052,0.073522,68037.0,68033.0,0.0587397]
[1729862733252,0.073528,68031.0,68030.0,0.0440567]
[1729862733454,0.073528,68031.0,68028.0,0.3608]
[1729862733455,0.07353,68030.0,68029.0,0.0440567]
[1729862733665,0.07353,68030.0,68028.0,0.3608]
[1729862733666,0.073531,68029.0,68028.0,0.4048567]
[1729862734657,0.073531,68029.0,68028.0,0.434332]
[1729862736169,0.073531,68029.0,68028.0,0.4783887]
[1729862736356,0.36176,68039.0,68028.0,0.49747989]
[1729862736568,0.36176,68039.0,68034.0,0.073524]
[1729862736569,0.073525,68035.0,68034.0,0.073524]
[1729862737653,0.16614819,68035.0,68034.0,0.073524]
[1729862738862,0.26666819,68035.0,68034.0,0.073524]
[1729862739862,0.16614819,68035.0,68034.0,0.073524]
[1729862740071,0.26666819,68035.0,68034.0,0.073524]
[1729862740567,0.19314319,68035.0,68030.0,0.0440567]
[1729862740777,0.073528,68032.0,68031.0,0.073528]
[1729862740963,0.02201957,68032.0,68031.0,0.26225607]
[1729862741163,0.10052,68035.0,68031.0,0.26225607]
[1729862741471,0.174044,68035.0,68034.0,0.07336334]
[1729862741675,0.174044,68035.0,68034.0,0.14688834]
[1729862742063,0.174044,68035.0,68034.0,0.17366763]
[1729862742768,0.26666719,68035.0,68034.0,0.17366763]
[1729862743074,0.16614719,68035.0,68034.0,0.17366763]
[1729862743264,0.073524,68035.0,68034.0,0.17366763]
[1729862745258,0.38249914,68039.0,68034.0,0.17366763]
[1729862745466,0.18784333,68039.0,68038.0,0.14688265]
[1729862745663,0.16614419,68039.0,68038.0,0.17349563]
[1729862746373,0.16614419,68039.0,68038.0,0.17340573]
[1729862751070,0.16614419,68039.0,68038.0,0.17350932]
[1729862751477,0.16614419,68039.0,68038.0,0.26166042]
[1729862752383,0.16614419,68039.0,68038.0,0.17350932]
[1729862753178,0.16614419,68039.0,68038.0,0.26162851]
[1729862753584,0.16614419,68039.0,68038.0,0.17350932]
[1729862753773,0.073521,68039.0,68038.0,0.17350932]
[1729862753974,0.16614419,68039.0,68038.0,0.17350932]
[1729862754473,0.16614419,68039.0,68038.0,0.26164934]
[1729862754879,0.16614419,68039.0,68038.0,0.29281117]
[1729862755781,0.16614419,68039.0,68038.0,0.29413314]
[1729862756277,0.16614419,68039.0,68038.0,0.073521]
[1729862757574,0.16614419,68039.0,68038.0,0.103921]
[1729862760288,0.073521,68039.0,68038.0,0.103921]
[1729862760471,0.16614419,68039.0,68038.0,0.103921]
[1729862763085,0.16614419,68039.0,68038.0,0.20498347]
[1729862765083,0.16614419,68039.0,68038.0,0.293163]
[1729862765378,0.16614419,68039.0,68038.0,0.2931677]
[1729862769189,0.16614419,68039.0,68038.0,0.20498817]
[1729862769997,0.16614419,68039.0,68038.0,0.2931915]
[1729862770297,0.16614419,68039.0,68038.0,0.20498817]
[1729862770600,0.073514,68047.0,68046.0,0.073512]
[1729862770795,0.16613719,68047.0,68046.0,0.24808164]
[1729862771101,0.073514,68047.0,68046.0,0.17457917]
[1729862771594,0.16613719,68047.0,68046.0,0.17457917]
[1729862772297,0.073514,68047.0,68046.0,0.17457917]
[1729862772492,0.16613719,68047.0,68046.0,0.17457917]
[1729862772998,0.16613719,68047.0,68046.0,0.17450029]
[1729862777697,0.16613719,68047.0,68046.0,0.17444947]
[1729862778200,0.16613719,68047.0,68046.0,0.073512]
[1729862779788,0.073514,68047.0,68046.0,0.073512]
[1729862780196,0.073508,68052.0,68051.0,0.073505]
[1729862780398,0.16613119,68052.0,68051.0,0.073505]
[1729862785307,0.073508,68052.0,68051.0,0.073505]
[1729862785696,0.16613119,68052.0,68051.0,0.073505]
[1729862787306,0.073508,68052.0,68051.0,0.16612819]
[1729862787804,0.3608,68059.0,68051.0,0.33222511]
[1729862788005,0.43429,68067.0,68059.0,0.073497]
[1729862788006,0.073498,68060.0,68059.0,0.073497]
[1729862788204,0.073498,68060.0,68059.0,0.16612019]
[1729862788409,0.09262319,68066.0,68062.0,0.073495]
[1729862788410,0.073495,68063.0,68062.0,0.073495]
[1729862788600,0.073495,68063.0,68062.0,0.16611819]
[1729862788919,0.073495,68063.0,68062.0,0.22483743]
[1729862789105,0.073495,68063.0,68062.0,0.16611819]
[1729862789701,0.073495,68063.0,68062.0,0.073495]
[1729862790301,0.073495,68063.0,68062.0,0.13215756]
[1729862791410,0.073495,68063.0,68062.0,0.52691819]
[1729862791704,0.19294319,68072.0,68067.0,0.073489]
[1729862792003,0.073486,68070.0,68069.0,0.04398579]
[1729862792198,0.073487,68069.0,68068.0,0.09262319]
[1729862792599,0.073487,68069.0,68068.0,0.13660898]
[1729862792800,0.073487,68069.0,68068.0,0.09262319]
[1729862793010,0.073487,68069.0,68068.0,0.16611219]
[1729862793305,0.10433759,68069.0,68068.0,0.16611219]
[1729862793608,0.073487,68069.0,68068.0,0.16611219]
[1729862794212,0.073491,68066.0,68065.0,0.16611419]
[1729862794395,0.073491,68066.0,68062.0,0.3608]
[1729862794396,0.073494,68063.0,68062.0,0.3608]
[1729862794597,0.09262319,68063.0,68061.0,0.0641]
[1729862794809,0.073495,68062.0,68061.0,0.0641]
[1729862795208,0.073495,68062.0,68061.0,0.137596]
[1729862796711,0.085245,68062.0,68061.0,0.137596]
[1729862802401,0.073498,68060.0,68059.0,0.073498]
[1729862802700,0.16612119,68060.0,68059.0,0.073498]
[1729862803499,0.16612119,68060.0,68059.0,0.11748338]
[1729862803698,0.16612119,68060.0,68059.0,0.073498]
[1729862805609,0.16612119,68060.0,68059.0,0.11749279]
[1729862806313,0.16612119,68060.0,68059.0,0.073498]
[1729862806813,0.073498,68060.0,68059.0,0.073498]
[1729862809610,0.16612119,68060.0,68059.0,0.073498]
[1729862813715,0.19702153,68060.0,68059.0,0.073498]
[1729862816419,0.16612119,68060.0,68059.0,0.073498]
[1729862818315,0.09262319,68060.0,68059.0,0.073498]
[1729862821712,0.16612019,68060.0,68059.0,0.073498]
[1729862823320,0.19716364,68060.0,68059.0,0.073498]
[1729862825609,0.16612019,68060.0,68059.0,0.073498]
[1729862826624,0.19730847,68060.0,68059.0,0.073498]
[1729862827112,0.10468528,68060.0,68059.0,0.073498]
[1729862827627,0.13587834,68060.0,68059.0,0.073498]
[1729862828623,0.14762834,68060.0,68059.0,0.073498]
[1729862829422,0.24025153,68060.0,68059.0,0.073498]
[1729862829821,0.20905847,68060.0,68059.0,0.073498]
[1729862831221,0.11643528,68060.0,68059.0,0.073498]
[1729862833219,0.085247,68060.0,68059.0,0.073498]
[1729862841227,0.073499,68058.0,68057.0,0.07354166]
[1729862841825,0.96772219,68058.0,68057.0,0.07354166]
[1729862842023,0.936399,68058.0,68057.0,0.07354166]
[1729862843021,0.905899,68058.0,68057.0,0.07354166]
[1729862843421,0.92753967,68058.0,68057.0,0.07354166]
[1729862843629,0.48673967,68058.0,68057.0,0.07354166]
[1729862843823,0.92753967,68058.0,68057.0,0.07354166]
[1729862844024,0.45593967,68058.0,68057.0,0.07354166]
[1729862844225,0.89673967,68058.0,68057.0,0.07354166]
[1729862844525,0.45593967,68058.0,68057.0,0.07354166]
[1729862845732,0.45593967,68058.0,68049.0,0.0329]
[1729862845932,0.073508,68050.0,68049.0,0.0329]
[1729862846322,0.10285893,68050.0,68049.0,0.0329]
[1729862846625,0.073508,68050.0,68049.0,0.0329]
[1729862849739,0.09478342,68050.0,68049.0,0.0329]
[1729862854140,0.09478342,68050.0,68049.0,0.13468248]
[1729862854638,0.09478342,68050.0,68049.0,0.13473488]
[1729862855338,0.19494342,68050.0,68049.0,0.13473488]
[1729862856740,0.19494342,68050.0,68049.0,0.22300823]
[1729862857130,0.19494342,68050.0,68049.0,0.13473488]
[1729862859732,0.55574342,68050.0,68049.0,0.10183488]
[1729862859932,0.55574342,68050.0,68048.0,0.07346067]
[1729862859933,0.073509,68049.0,68048.0,0.07346067]
[1729862860134,0.073512,68046.0,68045.0,0.0734665]
[1729862860434,0.073513,68045.0,68044.0,0.0734665]
[1729862860635,0.073514,68044.0,68043.0,0.0734665]
[1729862860934,0.52693719,68044.0,68043.0,0.1754417]
[1729862861333,0.073518,68041.0,68040.0,0.10816611]
[1729862861543,0.16614119,68041.0,68040.0,0.0641]
[1729862863541,0.17789119,68041.0,68040.0,0.0641]
[1729862865543,0.29180621,68041.0,68040.0,0.0641]
[1729862866849,0.10655983,68041.0,68040.0,0.0641]
[1729862867053,0.19918302,68041.0,68040.0,0.0641]
[1729862869247,0.21093302,68041.0,68040.0,0.16588091]
[1729862869641,0.31101302,68041.0,68040.0,0.16588091]
[1729862872444,0.11830983,68041.0,68040.0,0.16588091]
[1729862872644,0.21093302,68041.0,68040.0,0.16588091]
[1729862872844,0.21093302,68041.0,68040.0,0.25415426]
[1729862873053,0.21093302,68041.0,68040.0,0.25410701]
[1729862876340,0.21093302,68041.0,68040.0,0.0641]
[1729862881456,0.0235,68041.0,68040.0,0.12284015]
[1729862881761,0.18964119,68041.0,68040.0,0.12284015]
[1729862882362,0.18964119,68041.0,68040.0,0.0641]
[1729862883452,0.097018,68041.0,68040.0,0.137619]
[1729862883755,0.0235,68041.0,68040.0,0.23024219]
[1729862884262,0.05929325,68041.0,68040.0,0.45290328]
[1729862885755,0.05929325,68041.0,68040.0,0.36028009]
[1729862889465,0.09262319,68044.0,68040.0,0.72108009]
[1729862889663,0.073517,68042.0,68041.0,0.38880028]
[1729862890255,0.073517,68042.0,68041.0,0.38791096]
[1729862893760,0.073513,68046.0,68045.0,0.073511]
[1729862893976,0.073513,68046.0,68045.0,0.38790596]
[1729862894364,0.09262319,68055.0,68045.0,0.38790596]
[1729862894671,0.09262319,68055.0,68051.0,0.18076604]
[1729862894672,0.073506,68052.0,68051.0,0.18076604]
[1729862894966,0.073506,68052.0,68051.0,0.18931787]
[1729862895162,0.16612919,68052.0,68051.0,0.18931787]
[1729862896073,0.073506,68052.0,68051.0,0.10117502]
[1729862896267,0.073506,68052.0,68051.0,0.18888104]
[1729862896463,0.073506,68052.0,68051.0,0.28150423]
[1729862897070,0.073506,68052.0,68051.0,0.35501123]
[1729862897271,0.073506,68052.0,68051.0,0.40968097]
[1729862898561,0.073506,68052.0,68051.0,0.3866941]
[1729862899466,0.073506,68052.0,68051.0,0.26687376]
[1729862899666,0.073506,68052.0,68051.0,0.22486871]
[1729862900170,0.073506,68052.0,68051.0,0.05873852]
[1729862900171,0.16612919,68052.0,68051.0,0.05873852]
[1729862900366,0.16612919,68052.0,68048.0,0.11341981]
[1729862900367,0.073507,68051.0,68050.0,0.05873852]
[1729862900875,0.073508,68050.0,68049.0,0.13224752]
[1729862902275,0.073508,68050.0,68049.0,0.073509]
[1729862902677,0.073508,68050.0,68049.0,0.13224752]
[1729862903383,0.073508,68050.0,68049.0,0.073509]
[1729862906580,0.073508,68050.0,68049.0,0.17377061]
[1729862907286,0.073508,68050.0,68049.0,0.17377062]
[1729862907780,0.073508,68050.0,68049.0,0.20667062]
[1729862907988,0.085258,68050.0,68049.0,0.20667062]
[1729862908775,0.085258,68050.0,68049.0,0.32616021]
[1729862911987,0.01175,68050.0,68049.0,0.32617346]
[1729862912379,0.01175,68050.0,68049.0,0.21976446]
[1729862912575,0.085258,68050.0,68049.0,0.10025926]
[1729862912781,0.085258,68050.0,68049.0,0.18835943]
[1729862913182,0.085258,68050.0,68049.0,0.10025926]
[1729862914586,0.085258,68050.0,68046.0,0.05874411]
[1729862914786,0.073512,68046.0,68045.0,0.05874411]
[1729862914989,0.073513,68045.0,68044.0,0.073514]
[1729862916276,0.073514,68044.0,68043.0,0.3608]
[1729862916507,0.073514,68044.0,68043.0,0.05875326]
[1729862916684,0.073518,68041.0,68040.0,0.05875326]
[1729862916885,0.073519,68040.0,68039.0,0.05875326]
[1729862917185,0.09262319,68041.0,68038.0,0.05875326]
[1729862917486,0.16614319,68039.0,68038.0,0.05875326]
[1729862917687,0.16614319,68039.0,68037.0,0.00220449]
[1729862917688,0.073521,68038.0,68037.0,0.00220449]
[1729862918286,0.16614419,68038.0,68037.0,0.06094546]
[1729862918492,0.073521,68038.0,68037.0,0.00220449]
[1729862918682,0.073521,68038.0,68037.0,0.04626261]
[1729862918683,0.104521,68038.0,68037.0,0.04626261]
[1729862919285,0.104521,68038.0,68037.0,0.00220449]
[1729862919692,0.104521,68038.0,68037.0,0.04626261]
[1729862920189,0.104521,68038.0,68037.0,0.00220449]
[1729862920786,0.12613133,68038.0,68037.0,0.00220449]
[1729862925882,0.09513133,68038.0,68037.0,0.00220449]
[1729862926087,0.073521,68038.0,68037.0,0.09482768]
[1729862927281,0.073521,68038.0,68037.0,0.073522]
[1729862927486,0.11355576,68039.0,68035.0,0.07343013]
[1729862927682,0.073523,68036.0,68035.0,0.16605332]
[1729862928700,0.073523,68036.0,68035.0,0.23957732]
[1729862929795,0.073523,68036.0,68035.0,0.16614719]
[1729862932993,0.073523,68036.0,68035.0,0.18722917]
[1729862936505,0.3608,68042.0,68035.0,0.20632836]
[1729862936506,0.02114639,68042.0,68035.0,0.20632836]
[1729862936696,0.073518,68042.0,68041.0,0.073518]
[1729862937096,0.073518,68042.0,68041.0,0.139618]
[1729862937300,0.073518,68042.0,68041.0,0.21304813]
[1729862937604,0.073518,68042.0,68041.0,0.31334366]
[1729862937908,0.073518,68042.0,68041.0,0.21304813]
[1729862938205,0.073518,68042.0,68041.0,0.31334025]
[1729862939204,0.073518,68042.0,68041.0,0.23991012]
[1729862941509,0.073514,68045.0,68044.0,0.073512]
[1729862941707,0.45442319,68050.0,68044.0,0.19291531]
[1729862941900,0.07351,68048.0,68047.0,0.16613219]
[1729862942301,0.07351,68048.0,68047.0,0.26646897]
[1729862943211,0.08526,68048.0,68047.0,0.26637942]
[1729862943410,0.08526,68048.0,68047.0,0.17375623]
[1729862944711,0.08526,68048.0,68047.0,0.13224407]
[1729862945411,0.08526,68048.0,68047.0,0.13224559]
[1729862945709,0.08526,68048.0,68047.0,0.073509]
[1729862947407,0.08526,68048.0,68047.0,0.15301676]
[1729862948011,0.08526,68048.0,68047.0,0.09428531]
[1729862948312,0.08526,68048.0,68047.0,0.15301448]
[1729862950815,0.08526,68048.0,68047.0,0.07950548]
[1729862951114,0.08526,68048.0,68047.0,0.15301648]
[1729862951721,0.08526,68048.0,68047.0,0.09428731]
[1729862952021,0.01175,68048.0,68047.0,0.09428731]
[1729862952225,0.08526,68048.0,68047.0,0.1869105]
[1729862952412,0.08526,68048.0,68047.0,0.4069105]
[1729862953012,0.08526,68048.0,68047.0,0.49953369]
[1729862953013,0.01175,68048.0,68047.0,0.49953369]
[1729862953216,0.073496,68062.0,68061.0,0.073494]
[1729862953414,0.073496,68062.0,68061.0,0.16611719]
[1729862953612,0.073496,68062.0,68061.0,0.16591719]
[1729862954025,0.085246,68062.0,68061.0,0.16591719]
[1729862956025,0.085246,68062.0,68061.0,0.18761303]
[1729862956727,0.073497,68060.0,68059.0,0.12372319]
[1729862956922,0.073497,68060.0,68059.0,0.0311]
[1729862958225,0.073497,68060.0,68059.0,0.104598]
[1729862963239,0.085247,68060.0,68059.0,0.104598]
[1729862966942,0.085247,68060.0,68059.0,0.073498]
[1729862967148,0.073498,68059.0,68058.0,0.05865261]
[1729862969941,0.073498,68059.0,68058.0,0.13215161]
[1729862972146,0.073498,68059.0,68058.0,0.073499]
[1729862973051,0.16612119,68059.0,68058.0,0.073499]
[1729862974254,0.16612119,68059.0,68058.0,0.17300963]
[1729862976149,0.073498,68059.0,68058.0,0.17300963]
[1729862976347,0.073498,68059.0,68058.0,0.26098855]
[1729862976544,0.16612119,68059.0,68058.0,0.09951063]
[1729862976746,0.70668119,68059.0,68058.0,0.09951063]
[1729862977057,0.70668119,68059.0,68058.0,0.07339179]
[1729862977256,0.70668119,68059.0,68047.0,0.31482753]
[1729862977257,1.06748119,68059.0,68056.0,0.07339179]
[1729862977447,0.073501,68056.0,68055.0,0.07339179]
[1729862977645,0.16612419,68056.0,68055.0,0.17319932]
[1729862977846,0.16612419,68056.0,68055.0,0.09980753]
[1729862978046,0.16612419,68056.0,68055.0,0.0997589]
[1729862978750,0.16612419,68056.0,68055.0,0.09980247]
[1729862979147,0.16612419,68056.0,68055.0,0.07341165]
[1729862979355,0.16612419,68056.0,68055.0,0.17334241]
[1729862979855,0.16612419,68056.0,68055.0,0.09993076]
[1729862982863,0.16612419,68056.0,68055.0,0.09994105]
[1729862984762,0.18730095,68056.0,68055.0,0.09994105]
[1729862987357,0.28706095,68056.0,68055.0,0.09994105]
[1729862988056,0.18730095,68056.0,68055.0,0.09994105]
[1729862989257,0.18730095,68056.0,68053.0,0.032]
[1729862989258,0.073504,68054.0,68053.0,0.032]
[1729862997062,0.073504,68054.0,68053.0,0.0760788]
[1729862997365,0.073504,68054.0,68053.0,0.13191257]
[1729863000366,0.073485,68072.0,68053.0,0.20541757]
[1729863000568,0.073485,68072.0,68066.0,0.05878944]
[1729863000569,0.07349,68067.0,68066.0,0.05878944]
[1729863000867,0.073491,68066.0,68065.0,0.12218914]
[1729863001061,0.073498,68059.0,68058.0,0.07348616]
[1729863001268,0.073492,68065.0,68057.0,0.07348616]
[1729863001269,0.073499,68058.0,68057.0,0.07348616]
[1729863001456,0.16612219,68058.0,68057.0,0.09988668]
[1729863002167,0.16612219,68058.0,68057.0,0.1734048]
[1729863002564,0.16612219,68058.0,68057.0,0.09991361]
[1729863002767,0.16612219,68058.0,68057.0,0.07349928]
[1729863003666,0.16612219,68058.0,68057.0,0.46068879]
[1729863004064,0.073499,68058.0,68057.0,0.46068879]
[1729863004261,0.073499,68058.0,68057.0,0.3608]
[1729863004565,0.16612219,68058.0,68057.0,0.3608]
[1729863004764,0.16612219,68058.0,68057.0,0.40490001]
[1729863004965,0.16612219,68058.0,68057.0,0.3608]
[1729863005165,0.073501,68056.0,68055.0,0.07500014]
[1729863005363,0.073501,68056.0,68055.0,0.0309]
[1729863006360,0.085251,68056.0,68055.0,0.0309]
[1729863007865,0.446051,68056.0,68055.0,0.0309]
[1729863008064,0.446051,68056.0,68047.0,0.06100435]
[1729863008065,0.07351,68048.0,68047.0,0.00220434]
[1729863008261,0.16613319,68048.0,68047.0,0.00220434]
[1729863009774,0.09520974,68048.0,68047.0,0.00220434]
[1729863010162,0.18783293,68048.0,68047.0,0.00220434]
[1729863010564,0.16613319,68048.0,68047.0,0.00220434]
[1729863012265,0.16613319,68048.0,68047.0,0.19033557]
[1729863013367,0.16613319,68048.0,68047.0,0.10219595]
[1729863014104,0.16613319,68048.0,68047.0,0.1902289]
[1729863014672,0.16613319,68048.0,68047.0,0.10208928]
[1729863015578,0.16613319,68048.0,68038.0,0.08813962]
[1729863015579,0.073514,68044.0,68038.0,0.08813962]
[1729863015876,0.073514,68044.0,68033.0,0.08813962]
[1729863015877,0.073525,68034.0,68033.0,0.08813962]
[1729863016071,0.26582819,68034.0,68033.0,0.10054124]
[1729863016271,0.073532,68028.0,68027.0,0.0332]
[1729863016472,0.073532,68028.0,68027.0,0.20684391]
[1729863016674,0.09262319,68030.0,68027.0,0.106733]
[1729863016882,0.073531,68029.0,68028.0,0.17358869]
[1729863017978,0.073527,68033.0,68032.0,0.073527]
[1729863018279,0.073523,68036.0,68035.0,0.073523]
[1729863018481,0.09968,68042.0,68041.0,0.073517]
[1729863018673,0.073517,68042.0,68041.0,0.16614019]
[1729863018867,0.073514,68045.0,68044.0,0.073514]
[1729863019071,0.16613719,68045.0,68044.0,0.17276225]
[1729863019386,0.16613719,68045.0,68044.0,0.073514]
[1729863019568,0.0318,68063.0,68048.0,0.07351]
[1729863019569,0.07351,68049.0,68048.0,0.07351]
[1729863019774,0.07351,68049.0,68048.0,0.52693319]
[1729863020075,0.09262319,68055.0,68052.0,0.073504]
[1729863020076,0.073505,68053.0,68052.0,0.073504]
[1729863020470,0.073503,68055.0,68051.0,0.073507]
[1729863020670,0.073503,68055.0,68054.0,0.073504]
[1729863020876,0.01175,68056.0,68054.0,0.3608]
[1729863021077,0.01175,68056.0,68055.0,0.106503]
[1729863021677,0.01175,68066.0,68055.0,0.033]
[1729863021881,0.085241,68066.0,68065.0,0.21472953]
[1729863022085,0.085241,68066.0,68064.0,0.3608]
[1729863022086,0.073492,68065.0,68064.0,0.3608]
[1729863022470,0.01175,68066.0,68061.0,0.3608]
[1729863022675,0.21473253,68062.0,68061.0,0.3608]
[1729863022976,0.073501,68056.0,68055.0,0.033]
[1729863023180,0.21473853,68056.0,68055.0,0.033]
[1729863023576,0.21473853,68056.0,68049.0,0.22]